fUST/lending_fUST_20251209
["ID","MTS","AMOUNT","RATE_DAILY","PERIOD"]
[397842409,1765236642812,-1359.0,7.866e-05,2]
[397842410,1765236642821,-631.0,7.866e-05,2]
[397842411,1765236642831,-415.0,7.866e-05,2]
[397842412,1765236642840,-485.91558555,7.954e-05,2]
[397842413,1765236642851,-749.1355021,7.997e-05,2]
[397842414,1765236642860,-347.26521562,8.031e-05,2]
[397842415,1765236642870,-150.0,8.034e-05,2]
[397842416,1765236642879,-150.0,8.034e-05,2]
[397842417,1765236642888,-150.0,8.034e-05,2]
[397842433,1765236643131,-150.0,8.034e-05,2]
[397842435,1765236643145,-457.0,8.034e-05,2]
[397842437,1765236643155,-470.0,8.034e-05,2]
[397842439,1765236643164,-3031.91,8.034e-05,2]
[397842441,1765236643174,-9454.96843052,8.103e-05,2]
[397842443,1765236643183,-1294.18961489,8.161e-05,2]
[397842445,1765236643192,-457.0,8.171e-05,2]
[397842447,1765236643202,-470.0,8.171e-05,2]
[397842449,1765236643211,-500.0,8.219e-05,2]
[397842451,1765236643219,-500.0,8.219e-05,2]
[397842453,1765236643229,-500.0,8.219e-05,2]
[397842455,1765236643238,-495.75796305,8.219e-05,2]
[397842457,1765236643248,-500.0,8.219e-05,2]
[397842459,1765236643257,-500.0,8.219e-05,2]
[397842461,1765236643266,-500.0,8.219e-05,2]
[397842463,1765236643275,-629.45553012,8.219e-05,2]
[397842465,1765236643285,-500.0,8.219e-05,2]
[397842467,1765236643294,-500.0,8.219e-05,2]
[397842469,1765236643303,-500.0,8.219e-05,2]
[397842471,1765236643312,-500.0,8.219e-05,2]
[397842473,1765236643322,-500.0,8.219e-05,2]
[397842475,1765236643332,-1465.49,8.219e-05,2]
[397842477,1765236643343,-500.0,8.219e-05,2]
[397842479,1765236643352,-510.72268404,8.219e-05,2]
[397842481,1765236643362,-500.0,8.219e-05,2]
[397842483,1765236643371,-957.04,8.219e-05,2]
[397842485,1765236643380,-500.0,8.219e-05,2]
[397842487,1765236643389,-500.0,8.219e-05,2]
[397842489,1765236643399,-500.0,8.219e-05,2]
[397842491,1765236643408,-589.78,8.219e-05,2]
[397842493,1765236643417,-500.0,8.219e-05,2]
[397842494,1765236643426,-500.0,8.219e-05,2]
[397842496,1765236643436,-921.22,8.219e-05,2]
[397842498,1765236643446,-500.0,8.219e-05,2]
[397842500,1765236643456,-500.0,8.219e-05,2]
[397842502,1765236643465,-500.0,8.219e-05,2]
[397842504,1765236643474,-705.29,8.219e-05,2]
[397842506,1765236643483,-500.0,8.219e-05,2]
[397842508,1765236643492,-500.0,8.219e-05,2]
[397842510,1765236643502,-984.81,8.219e-05,2]
[397842512,1765236643511,-500.0,8.219e-05,2]
[397842514,1765236643520,-500.0,8.219e-05,2]
[397842516,1765236643530,-500.0,8.219e-05,2]
[397842518,1765236643539,-775.33,8.219e-05,2]
[397842520,1765236643548,-500.0,8.219e-05,2]
[397842522,1765236643558,-500.0,8.219e-05,2]
[397842524,1765236643567,-548.93,8.219e-05,2]
[397842526,1765236643576,-554.5,8.219e-05,2]
[397842528,1765236643588,-756.65,8.219e-05,2]
[397842530,1765236643598,-571.05121542,8.219e-05,2]
[397842532,1765236643607,-500.0,8.219e-05,2]
[397842534,1765236643617,-500.0,8.219e-05,2]
[397842536,1765236643626,-500.0,8.219e-05,2]
[397842538,1765236643635,-500.0,8.219e-05,2]
[397842540,1765236643644,-500.0,8.219e-05,2]
[397842542,1765236643653,-500.0,8.219e-05,2]
[397842544,1765236643662,-500.0,8.219e-05,2]
[397842546,1765236643671,-500.0,8.219e-05,2]
[397842548,1765236643680,-500.0,8.219e-05,2]
[397842550,1765236643689,-500.0,8.219e-05,2]
[397842552,1765236643698,-880.18,8.219e-05,2]
[397842554,1765236643707,-732.56,8.219e-05,2]
[397842556,1765236643716,-500.0,8.219e-05,2]
[397842558,1765236643725,-500.0,8.219e-05,2]
[397842560,1765236643735,-500.0,8.219e-05,2]
[397842562,1765236643744,-500.0,8.219e-05,2]
[397842564,1765236643753,-500.0,8.219e-05,2]
[397842566,1765236643762,-500.0,8.219e-05,2]
[397842568,1765236643771,-547.5,8.219e-05,2]
[397842570,1765236643780,-500.0,8.219e-05,2]
[397842572,1765236643788,-500.0,8.219e-05,2]
[397842574,1765236643797,-291.76506415,8.219e-05,2]
[397842576,1765236643806,-500.0,8.219e-05,2]
[397842578,1765236643814,-500.0,8.219e-05,2]
[397842580,1765236643823,-500.0,8.219e-05,2]
[397842582,1765236643834,-500.0,8.219e-05,2]
[397842584,1765236643843,-500.0,8.219e-05,2]
[397842586,1765236643853,-500.0,8.219e-05,2]
[397842588,1765236643862,-500.0,8.219e-05,2]
[397842590,1765236643872,-500.0,8.219e-05,2]
[397842592,1765236643881,-500.0,8.219e-05,2]
[397842594,1765236643890,-500.0,8.219e-05,2]
[397842596,1765236643899,-500.0,8.219e-05,2]
[397842598,1765236643908,-500.0,8.219e-05,2]
[397842600,1765236643917,-500.0,8.219e-05,2]
[397842602,1765236643927,-500.0,8.219e-05,2]
[397842604,1765236643936,-744.77,8.219e-05,2]
[397842606,1765236643945,-500.0,8.219e-05,2]
[397842608,1765236643955,-500.0,8.219e-05,2]
[397842610,1765236643964,-690.41,8.219e-05,2]
[397842612,1765236643973,-500.0,8.219e-05,2]
[397842614,1765236643982,-500.0,8.219e-05,2]
[397842616,1765236643991,-500.0,8.219e-05,2]
[397842618,1765236644000,-500.0,8.219e-05,2]
[397842620,1765236644010,-500.0,8.219e-05,2]
[397842622,1765236644021,-500.0,8.219e-05,2]
[397842624,1765236644033,-500.0,8.219e-05,2]
[397842626,1765236644042,-588.48,8.219e-05,2]
[397842628,1765236644053,-500.0,8.219e-05,2]
[397842630,1765236644062,-500.0,8.219e-05,2]
[397842632,1765236644071,-735.73,8.219e-05,2]
[397842634,1765236644081,-500.0,8.219e-05,2]
[397842636,1765236644090,-500.0,8.219e-05,2]
[397842638,1765236644102,-500.0,8.219e-05,2]
[397842640,1765236644111,-500.0,8.219e-05,2]
[397842642,1765236644121,-500.0,8.219e-05,2]
[397842644,1765236644130,-500.0,8.219e-05,2]
[397842646,1765236644139,-500.0,8.219e-05,2]
[397842648,1765236644148,-821.0,8.219e-05,2]
[397842650,1765236644158,-2418.01,8.219e-05,2]
[397842652,1765236644167,-500.0,8.219e-05,2]
[397842654,1765236644176,-500.0,8.219e-05,2]
[397842656,1765236644185,-500.0,8.219e-05,2]
[397842658,1765236644194,-500.0,8.219e-05,2]
[397842660,1765236644203,-500.0,8.219e-05,2]
[397842662,1765236644212,-500.0,8.219e-05,2]
[397842664,1765236644222,-500.0,8.219e-05,2]
[397842666,1765236644231,-500.0,8.219e-05,2]
[397842668,1765236644240,-500.0,8.219e-05,2]
[397842670,1765236644249,-831.42,8.219e-05,2]
[397842672,1765236644258,-500.0,8.219e-05,2]
[397842674,1765236644267,-500.0,8.219e-05,2]
[397842676,1765236644276,-500.0,8.219e-05,2]
[397842678,1765236644285,-705.12,8.219e-05,2]
[397842680,1765236644294,-500.0,8.219e-05,2]
[397842682,1765236644303,-500.0,8.219e-05,2]
[397842683,1765236644312,-440.52413919,8.219e-05,2]
[397842685,1765236644321,-623.54,8.219e-05,2]
[397842687,1765236644332,-543.58,8.219e-05,2]
[397842689,1765236644341,-500.0,8.219e-05,2]
[397842691,1765236644350,-500.0,8.219e-05,2]
[397842693,1765236644360,-500.0,8.219e-05,2]
[397842695,1765236644370,-500.0,8.219e-05,2]
[397842697,1765236644380,-500.0,8.219e-05,2]
[397842699,1765236644389,-500.0,8.219e-05,2]
[397842701,1765236644398,-500.0,8.219e-05,2]
[397842703,1765236644408,-1080.34,8.219e-05,2]
[397842705,1765236644417,-556.78,8.219e-05,2]
[397842707,1765236644427,-500.0,8.219e-05,2]
[397842709,1765236644435,-626.59,8.219e-05,2]
[397842711,1765236644444,-924.26,8.219e-05,2]
[397842713,1765236644453,-856.98,8.219e-05,2]
[397842715,1765236644463,-500.0,8.219e-05,2]
[397842717,1765236644472,-959.93,8.219e-05,2]
[397842719,1765236644482,-500.0,8.219e-05,2]
[397842721,1765236644491,-1246.33,8.219e-05,2]
[397842723,1765236644500,-500.0,8.219e-05,2]
[397842725,1765236644509,-500.0,8.219e-05,2]
[397842727,1765236644518,-500.0,8.219e-05,2]
[397842729,1765236644528,-500.0,8.219e-05,2]
[397842731,1765236644537,-500.0,8.219e-05,2]
[397842733,1765236644546,-662.58,8.219e-05,2]
[397842735,1765236644555,-500.0,8.219e-05,2]
[397842737,1765236644564,-1125.24,8.219e-05,2]
[397842739,1765236644573,-500.0,8.219e-05,2]
[397842741,1765236644582,-500.0,8.219e-05,2]
[397842743,1765236644591,-292.1323164,8.219e-05,2]
[397842745,1765236644600,-632.32,8.219e-05,2]
[397842747,1765236644609,-500.0,8.219e-05,2]
[397842749,1765236644619,-500.0,8.219e-05,2]
[397842751,1765236644628,-500.0,8.219e-05,2]
[397842753,1765236644637,-614.37,8.219e-05,2]
[397842755,1765236644647,-500.0,8.219e-05,2]
[397842757,1765236644656,-500.0,8.219e-05,2]
[397842759,1765236644665,-500.0,8.219e-05,2]
[397842761,1765236644674,-500.0,8.219e-05,2]
[397842763,1765236644684,-584.27,8.219e-05,2]
[397842764,1765236644693,-552.46604876,8.219e-05,2]
[397842766,1765236644703,-916.62,8.219e-05,2]
[397842769,1765236644712,-1778.85,8.219e-05,2]
[397842770,1765236644721,-533.08,8.219e-05,2]
[397842772,1765236644730,-500.0,8.219e-05,2]
[397842774,1765236644739,-706.18,8.219e-05,2]
[397842776,1765236644748,-500.0,8.219e-05,2]
[397842778,1765236644757,-500.0,8.219e-05,2]
[397842780,1765236644767,-500.0,8.219e-05,2]
[397842782,1765236644776,-675.06,8.219e-05,2]
[397842784,1765236644785,-500.44,8.219e-05,2]
[397842786,1765236644794,-545.17,8.219e-05,2]
[397842788,1765236644803,-500.0,8.219e-05,2]
[397842790,1765236644812,-1159.38,8.219e-05,2]
[397842792,1765236644821,-911.05,8.219e-05,2]
[397842794,1765236644831,-500.0,8.219e-05,2]
[397842796,1765236644840,-500.0,8.219e-05,2]
[397842798,1765236644850,-570.46,8.219e-05,2]
[397842800,1765236644859,-500.0,8.219e-05,2]
[397842802,1765236644868,-500.0,8.219e-05,2]
[397842804,1765236644877,-500.0,8.219e-05,2]
[397842806,1765236644887,-500.0,8.219e-05,2]
[397842808,1765236644896,-500.0,8.219e-05,2]
[397842810,1765236644905,-500.0,8.219e-05,2]
[397842812,1765236644914,-500.0,8.219e-05,2]
[397842814,1765236644924,-1930.41,8.219e-05,2]
[397842816,1765236644933,-308.17676744,8.219e-05,2]
[397842818,1765236644942,-500.0,8.219e-05,2]
[397842820,1765236644951,-500.0,8.219e-05,2]
[397842822,1765236644960,-500.0,8.219e-05,2]
[397842824,1765236644970,-500.0,8.219e-05,2]
[397842826,1765236644979,-1384.81,8.219e-05,2]
[397842828,1765236644988,-500.0,8.219e-05,2]
[397842830,1765236644997,-500.0,8.219e-05,2]
[397842832,1765236645007,-589.91,8.219e-05,2]
[397842834,1765236645016,-500.0,8.219e-05,2]
[397842836,1765236645031,-500.0,8.219e-05,2]
[397842838,1765236645040,-726.21,8.219e-05,2]
[397842840,1765236645049,-500.0,8.219e-05,2]
[397842842,1765236645059,-500.0,8.219e-05,2]
[397842844,1765236645068,-500.0,8.219e-05,2]
[397842846,1765236645078,-833.68,8.219e-05,2]
[397842848,1765236645088,-500.0,8.219e-05,2]
[397842850,1765236645098,-500.0,8.219e-05,2]
[397842852,1765236645108,-500.0,8.219e-05,2]
[397842854,1765236645117,-968.34,8.219e-05,2]
[397842856,1765236645126,-4166.51,8.219e-05,2]
[397842858,1765236645136,-500.0,8.219e-05,2]
[397842860,1765236645145,-500.0,8.219e-05,2]
[397842862,1765236645154,-831.6,8.219e-05,2]
[397842864,1765236645163,-500.0,8.219e-05,2]
[397842866,1765236645172,-500.0,8.219e-05,2]
[397842868,1765236645182,-454.03979371,8.219e-05,2]
[397842870,1765236645191,-500.49822127,8.219e-05,2]
[397842872,1765236645200,-534.11,8.219e-05,2]
[397842874,1765236645209,-1161.28,8.219e-05,2]
[397842876,1765236645218,-500.0,8.219e-05,2]
[397842878,1765236645227,-968.38,8.219e-05,2]
[397842880,1765236645236,-500.0,8.219e-05,2]
[397842882,1765236645246,-500.0,8.219e-05,2]
[397842884,1765236645255,-500.0,8.219e-05,2]
[397842886,1765236645264,-811.36,8.219e-05,2]
[397842887,1765236645273,-830.87,8.219e-05,2]
[397842888,1765236645282,-500.0,8.219e-05,2]
[397842889,1765236645291,-864.7,8.219e-05,2]
[397842890,1765236645300,-500.0,8.219e-05,2]
[397842891,1765236645309,-652.26,8.219e-05,2]
[397842892,1765236645318,-500.0,8.219e-05,2]
[397842893,1765236645328,-500.0,8.219e-05,2]
[397842895,1765236645338,-191.03386277,8.219e-05,2]
[397842897,1765236645347,-500.0,8.219e-05,2]
[397842899,1765236645357,-936.35,8.219e-05,2]
[397842901,1765236645366,-707.35,8.219e-05,2]
[397842903,1765236645376,-500.0,8.219e-05,2]
[397842905,1765236645386,-540.51,8.219e-05,2]
[397842908,1765236645395,-1234.55,8.219e-05,2]
[397842910,1765236645405,-500.0,8.219e-05,2]
[397842912,1765236645414,-500.0,8.219e-05,2]
[397842914,1765236645424,-1196.79,8.219e-05,2]
[397842916,1765236645435,-500.0,8.219e-05,2]
[397842918,1765236645444,-500.0,8.219e-05,2]
[397842920,1765236645453,-500.0,8.219e-05,2]
[397842922,1765236645463,-500.0,8.219e-05,2]
[397842924,1765236645473,-500.0,8.219e-05,2]
[397842926,1765236645483,-500.0,8.219e-05,2]
[397842928,1765236645492,-636.54,8.219e-05,2]
[397842930,1765236645501,-500.0,8.219e-05,2]
[397842932,1765236645510,-3067.49,8.219e-05,2]
[397842934,1765236645519,-1153.75,8.219e-05,2]
[397842936,1765236645528,-576.52,8.219e-05,2]
[397842938,1765236645537,-975.18,8.219e-05,2]
[397842940,1765236645546,-500.0,8.219e-05,2]
[397842942,1765236645555,-500.0,8.219e-05,2]
[397842944,1765236645564,-2039.76,8.219e-05,2]
[397842946,1765236645573,-827.03,8.219e-05,2]
[397842948,1765236645583,-837.04,8.219e-05,2]
[397842950,1765236645592,-644.31,8.219e-05,2]
[397842952,1765236645601,-500.0,8.219e-05,2]
[397842954,1765236645610,-533.49,8.219e-05,2]
[397842956,1765236645619,-762.67,8.219e-05,2]
[397842958,1765236645628,-59226.17,8.219e-05,2]
[397842960,1765236645637,-1656.04,8.219e-05,2]
[397842962,1765236645647,-500.0,8.219e-05,2]
[397842964,1765236645656,-500.0,8.219e-05,2]
[397842966,1765236645665,-576.03,8.219e-05,2]
[397842968,1765236645675,-254.64,8.219e-05,2]
[397842970,1765236645684,-500.0,8.219e-05,2]
[397842972,1765236645693,-884.08,8.219e-05,2]
[397842974,1765236645703,-578.08,8.219e-05,2]
[397842976,1765236645712,-500.0,8.219e-05,2]
[397842978,1765236645721,-500.0,8.219e-05,2]
[397842980,1765236645730,-500.0,8.219e-05,2]
[397842982,1765236645740,-500.0,8.219e-05,2]
[397842984,1765236645748,-534.69,8.219e-05,2]
[397842986,1765236645758,-1075.34,8.219e-05,2]
[397842988,1765236645767,-500.0,8.219e-05,2]
[397842990,1765236645777,-1348.43,8.219e-05,2]
[397842992,1765236645786,-500.0,8.219e-05,2]
[397842994,1765236645795,-500.0,8.219e-05,2]
[397842996,1765236645804,-528.84,8.219e-05,2]
[397842998,1765236645813,-726.59,8.219e-05,2]
[397843000,1765236645824,-1538.08,8.219e-05,2]
[397843002,1765236645833,-500.0,8.219e-05,2]
[397843004,1765236645844,-561.25,8.219e-05,2]
[397843006,1765236645854,-606.72540561,8.219e-05,2]
[397843008,1765236645863,-655.45,8.219e-05,2]
[397843010,1765236645873,-500.0,8.219e-05,2]
[397843012,1765236645883,-575.79,8.219e-05,2]
[397843014,1765236645892,-2204.71,8.219e-05,2]
[397843016,1765236645901,-266.55804079,8.219e-05,2]
[397843018,1765236645911,-532.55,8.219e-05,2]
[397843020,1765236645921,-739.14,8.219e-05,2]
[397843022,1765236645930,-1921.2,8.219e-05,2]
[397843024,1765236645940,-500.0,8.219e-05,2]
[397843026,1765236645950,-1414.91,8.219e-05,2]
[397843028,1765236645960,-251.1951743,8.219e-05,2]
[397843030,1765236645969,-1385.42,8.219e-05,2]
[397843032,1765236645979,-543.37,8.219e-05,2]
[397843034,1765236645989,-500.0,8.219e-05,2]
[397843036,1765236645998,-500.0,8.219e-05,2]
[397843038,1765236646008,-500.0,8.219e-05,2]
[397843040,1765236646018,-965.51,8.219e-05,2]
[397843043,1765236646033,-500.0,8.219e-05,2]
[397843045,1765236646043,-500.0,8.219e-05,2]
[397843047,1765236646052,-1729.48,8.219e-05,2]
[397843048,1765236646061,-701.56,8.219e-05,2]
[397843051,1765236646072,-819.42,8.219e-05,2]
[397843053,1765236646082,-500.0,8.219e-05,2]
[397843055,1765236646091,-2194.1,8.219e-05,2]
[397843057,1765236646101,-500.0,8.219e-05,2]
[397843059,1765236646112,-798.43,8.219e-05,2]
[397843061,1765236646122,-500.0,8.219e-05,2]
[397843063,1765236646131,-890.72,8.219e-05,2]
[397843065,1765236646141,-1606.12,8.219e-05,2]
[397843068,1765236646150,-500.0,8.219e-05,2]
[397843070,1765236646159,-3512.2,8.219e-05,2]
[397843073,1765236646169,-752.22,8.219e-05,2]
[397843075,1765236646179,-500.0,8.219e-05,2]
[397843077,1765236646189,-544.64,8.219e-05,2]
[397843079,1765236646198,-500.0,8.219e-05,2]
[397843081,1765236646208,-500.0,8.219e-05,2]
[397843083,1765236646217,-1297.15,8.219e-05,2]
[397843085,1765236646227,-768.91,8.219e-05,2]
[397843087,1765236646236,-500.0,8.219e-05,2]
[397843089,1765236646246,-500.0,8.219e-05,2]
[397843091,1765236646256,-1501.05,8.219e-05,2]
[397843093,1765236646265,-500.0,8.219e-05,2]
[397843095,1765236646275,-1528.81,8.219e-05,2]
[397843097,1765236646285,-500.0,8.219e-05,2]
[397843099,1765236646295,-500.0,8.219e-05,2]
[397843101,1765236646304,-1858.55,8.219e-05,2]
[397843103,1765236646314,-500.0,8.219e-05,2]
[397843105,1765236646326,-680.29,8.219e-05,2]
[397843107,1765236646336,-500.0,8.219e-05,2]
[397843109,1765236646345,-500.0,8.219e-05,2]
[397843111,1765236646355,-500.0,8.219e-05,2]
[397843114,1765236646365,-9109.8,8.219e-05,2]
[397843116,1765236646374,-630.58,8.219e-05,2]
[397843118,1765236646383,-500.0,8.219e-05,2]
[397843120,1765236646393,-6497.53,8.219e-05,2]
[397843122,1765236646402,-854.67,8.219e-05,2]
[397843124,1765236646411,-5505.64425586,8.219e-05,2]
[397843200,1765236647110,-654.42574414,8.219e-05,2]
[397843202,1765236647119,-500.0,8.219e-05,2]
[397843204,1765236647128,-1012.44,8.219e-05,2]
[397843206,1765236647137,-500.0,8.219e-05,2]
[397843208,1765236647146,-214.39765412,8.219e-05,2]
[397843286,1765236647857,-27.58543352,8.219e-05,2]
[397843288,1765236647868,-382.66691236,8.219e-05,2]
[397843290,1765236647878,-500.0,8.219e-05,2]
[397843292,1765236647887,-500.0,8.219e-05,2]
[397843294,1765236647896,-708.32,8.219e-05,2]
[397843296,1765236647906,-705.1,8.219e-05,2]
[397843298,1765236647915,-1127.65,8.219e-05,2]
[397843300,1765236647925,-500.0,8.219e-05,2]
[397843302,1765236647935,-500.0,8.219e-05,2]
[397843304,1765236647944,-500.0,8.219e-05,2]
[397843306,1765236647954,-500.0,8.219e-05,2]
[397843308,1765236647963,-500.0,8.219e-05,2]
[397843310,1765236647973,-2872.44,8.219e-05,2]
[397843312,1765236647982,-500.0,8.219e-05,2]
[397843314,1765236647991,-668.0,8.219e-05,2]
[397843316,1765236648000,-912.05,8.219e-05,2]
[397843318,1765236648010,-1157.98,8.219e-05,2]
[397843320,1765236648019,-500.0,8.219e-05,2]
[397843322,1765236648029,-703.58,8.219e-05,2]
[397843324,1765236648044,-3850.69,8.219e-05,2]
[397843326,1765236648053,-500.0,8.219e-05,2]
[397843328,1765236648062,-500.0,8.219e-05,2]
[397843330,1765236648071,-496.15766417,8.219e-05,2]
[397843332,1765236648082,-500.0,8.219e-05,2]
[397843334,1765236648091,-388.68961338,8.219e-05,2]
[397843336,1765236648100,-2388.7,8.219e-05,2]
[397843338,1765236648112,-500.0,8.219e-05,2]
[397843341,1765236648122,-500.0,8.219e-05,2]
[397843343,1765236648131,-602.23,8.219e-05,2]
[397843345,1765236648140,-500.0,8.219e-05,2]
[397843346,1765236648149,-500.0,8.219e-05,2]
[397843349,1765236648159,-1240.9,8.219e-05,2]
[397843351,1765236648168,-21733.1,8.219e-05,2]
[397843353,1765236648177,-531.73,8.219e-05,2]
[397843355,1765236648186,-500.0,8.219e-05,2]
[397843357,1765236648196,-3523.82,8.219e-05,2]
[397843359,1765236648205,-500.0,8.219e-05,2]
[397843361,1765236648215,-216.56490661,8.219e-05,2]
[397843363,1765236648228,-283.43509339,8.219e-05,2]
[397843365,1765236648238,-500.0,8.219e-05,2]
[397843367,1765236648247,-828.48,8.219e-05,2]
[397843369,1765236648256,-500.0,8.219e-05,2]
[397843371,1765236648265,-1276.57,8.219e-05,2]
[397843373,1765236648274,-2311.59,8.219e-05,2]
[397843375,1765236648282,-545.17454,8.219e-05,2]
[397843377,1765236648291,-599.35,8.219e-05,2]
[397843379,1765236648300,-500.0,8.219e-05,2]
[397843381,1765236648310,-1811.07478672,8.219e-05,2]
[397843383,1765236648322,-2832.24521328,8.219e-05,2]
[397843385,1765236648331,-500.0,8.219e-05,2]
[397843387,1765236648340,-1210.14,8.219e-05,2]
[397843389,1765236648350,-818.56,8.219e-05,2]
[397843391,1765236648360,-2210.28,8.219e-05,2]
[397843393,1765236648369,-500.0,8.219e-05,2]
[397843395,1765236648378,-983.08,8.219e-05,2]
[397843397,1765236648387,-500.0,8.219e-05,2]
[397843399,1765236648399,-500.0,8.219e-05,2]
[397843401,1765236648408,-500.0,8.219e-05,2]
[397843403,1765236648417,-4769.61,8.219e-05,2]
[397843405,1765236648426,-500.0,8.219e-05,2]
[397843407,1765236648436,-500.0,8.219e-05,2]
[397843410,1765236648445,-4740.98657903,8.219e-05,2]
[397852220,1765237629094,-449.753,6.217e-05,2]
[397852221,1765237629115,-283.6185227,6.28e-05,2]
[397852222,1765237629137,-511.0,6.343e-05,2]
[397852223,1765237629157,-899.0,6.343e-05,2]
[397852224,1765237629178,-158.08228496,6.343e-05,2]
[397852225,1765237629204,-4171.23806634,6.344e-05,2]
[397852226,1765237752176,-78927.2376629,6.244e-05,2]
[397852227,1765237753077,-3808.68751557,6.244e-05,2]
[397852228,1765237757110,-1497.86035886,6.244e-05,2]
[397852229,1765237764125,-127485.95285884,6.244e-05,2]
[397852230,1765237764162,-12833.80911724,6.244e-05,2]
[397852231,1765237771094,-114395.87711522,6.244e-05,2]
[397852248,1765237831665,-509.0,6.244e-05,2]
[397852250,1765237831675,-19987.57785639,6.244e-05,2]
[397852359,1765237838075,-9003.88907233,6.244e-05,2]
[397852361,1765237838087,-440789.71493045,6.244e-05,2]
[397852376,1765237838214,-657.04325237,6.244e-05,2]
[397852378,1765237838225,-10652.19783237,6.244e-05,2]
[397852644,1765237840922,-8965.26925915,6.244e-05,2]
[397852857,1765237842866,-31418.17967045,6.244e-05,2]
[397853176,1765237846015,-29576.70349786,6.244e-05,2]
[397853178,1765237846024,-300.0,6.47e-05,2]
[397853180,1765237846035,-300.0,6.47e-05,2]
[397853182,1765237846044,-300.0,6.47e-05,2]
[397853184,1765237846053,-300.0,6.47e-05,2]
[397853186,1765237846063,-300.0,6.47e-05,2]
[397853188,1765237846072,-300.0,6.47e-05,2]
[397853190,1765237846083,-300.0,6.47e-05,2]
[397853192,1765237846092,-300.0,6.47e-05,2]
[397853194,1765237846102,-300.0,6.47e-05,2]
[397853196,1765237846112,-300.0,6.47e-05,2]
[397853198,1765237846122,-300.0,6.47e-05,2]
[397853200,1765237846133,-300.0,6.47e-05,2]
[397853202,1765237846143,-300.0,6.47e-05,2]
[397853204,1765237846152,-300.0,6.47e-05,2]
[397853206,1765237846162,-300.0,6.47e-05,2]
[397853208,1765237846172,-600.0,6.47e-05,2]
[397853210,1765237846181,-2172.19564187,6.47e-05,2]
[397853212,1765237846192,-4901.3484213,6.624e-05,2]
[397853214,1765237846200,-291.78254417,6.977e-05,2]
[397853216,1765237846210,-672.96,7.05e-05,2]
[397853218,1765237846221,-720.0,7.117e-05,2]
[397853220,1765237846231,-1013.33103378,7.377e-05,2]
[397853222,1765237846241,-1345.93,7.386e-05,2]
[397853224,1765237846250,-291.78254417,7.507e-05,2]
[397853226,1765237846259,-2018.89,7.722e-05,2]
[397853228,1765237846269,-1013.33103378,7.819e-05,2]
[397853230,1765237846281,-864.0,7.829e-05,2]
[397853232,1765237846290,-2155.0,7.866e-05,2]
[397853234,1765237846300,-1359.0,7.866e-05,2]
[397853236,1765237846309,-631.0,7.866e-05,2]
[397853238,1765237846319,-347.26521562,7.964e-05,2]
[397853240,1765237846328,-291.78254417,8.037e-05,2]
[397853242,1765237846337,-2691.85,8.057e-05,2]
[397853244,1765237846347,-167.55845391,8.08e-05,2]
[397853246,1765237846357,-250.0,8.218e-05,2]
[397853248,1765237846366,-500.0,8.219e-05,2]
[397853250,1765237846376,-500.0,8.219e-05,2]
[397853253,1765237846385,-500.0,8.219e-05,2]
[397853254,1765237846398,-500.0,8.219e-05,2]
[397853257,1765237846409,-500.0,8.219e-05,2]
[397853259,1765237846418,-500.0,8.219e-05,2]
[397853261,1765237846428,-631.51,8.219e-05,2]
[397853263,1765237846440,-1131.86,8.219e-05,2]
[397853265,1765237846450,-500.0,8.219e-05,2]
[397853267,1765237846459,-500.0,8.219e-05,2]
[397853269,1765237846468,-500.0,8.219e-05,2]
[397853271,1765237846479,-500.0,8.219e-05,2]
[397853273,1765237846489,-911.89,8.219e-05,2]
[397853275,1765237846498,-500.0,8.219e-05,2]
[397853276,1765237846507,-2565.4423603,8.219e-05,2]
[397853278,1765237846516,-500.0,8.219e-05,2]
[397853281,1765237846526,-500.0,8.219e-05,2]
[397853283,1765237846535,-500.0,8.219e-05,2]
[397853285,1765237846544,-5261.194836,8.219e-05,2]